bitfinex/quotes_BTCUSD_20220105
["timestamp","ask_amount","ask_price","bid_price","bid_amount"]
[1641393019734,0.30220492,46396.0,46379.0,0.00124753]
[1641393019929,0.30220492,46396.0,46387.0,0.107789]
[1641393020133,0.19530334,46390.0,46387.0,0.107789]
[1641393020330,0.19530334,46390.0,46387.0,0.21557727]
[1641393020930,0.07620492,46396.0,46387.0,0.21557727]
[1641393021130,0.07620492,46396.0,46389.0,0.107778]
[1641393021430,0.07620492,46396.0,46389.0,0.10777585]
[1641393021629,0.00120492,46396.0,46392.0,0.05389298]
[1641393021878,0.21205663,46394.0,46392.0,0.05389298]
[1641393022477,0.22905663,46394.0,46393.0,0.053893]
[1641393023078,0.22905663,46394.0,46393.0,0.04848362]
[1641393023679,0.21205663,46394.0,46393.0,0.04848362]
[1641393024581,0.22405663,46394.0,46393.0,0.04848362]
[1641393024983,0.012,46394.0,46393.0,0.35287775]
[1641393025181,0.012,46394.0,46393.0,0.35329234]
[1641393025381,0.012,46394.0,46393.0,0.76329234]
[1641393025628,0.00102899,46395.0,46393.0,0.76329234]
[1641393025829,0.00102899,46395.0,46394.0,0.98349982]
[1641393026027,0.00102899,46395.0,46394.0,0.70784615]
[1641393026229,0.01,46398.0,46394.0,2.47166392]
[1641393026429,0.01,46398.0,46395.0,0.053879]
[1641393027433,0.01,46398.0,46396.0,0.00562529]
[1641393028032,0.01278875,46402.0,46397.0,1.43128067]
[1641393028232,0.60504924,46406.0,46397.0,1.51799067]
[1641393028434,0.60504924,46407.0,46400.0,0.00123978]
[1641393028632,0.60504924,46407.0,46400.0,0.04473978]
[1641393028833,0.60504924,46407.0,46406.0,0.00129229]
[1641393029032,0.60504924,46407.0,46406.0,0.46326729]
[1641393029279,0.004,46409.0,46407.0,0.05386373]
[1641393029581,0.60504924,46416.0,46410.0,0.50122562]
[1641393029780,0.60504924,46416.0,46411.0,0.15120287]
[1641393029982,0.17425588,46416.0,46415.0,0.0012065]
[1641393030182,0.70614851,46418.0,46417.0,0.0012307]
[1641393030383,0.0002,46420.0,46418.0,1.04]
[1641393030582,0.0001,46425.0,46421.0,0.75]
[1641393030782,0.0001,46425.0,46424.0,0.00125726]
[1641393030977,0.0001,46425.0,46424.0,0.01605726]
[1641393031178,0.0001,46425.0,46424.0,0.33229701]
[1641393031379,0.1783,46429.0,46425.0,0.64]
[1641393031578,0.86406072,46434.0,46428.0,0.52128666]
[1641393031779,0.30447398,46433.0,46428.0,0.06654666]
[1641393031982,0.354824,46432.0,46415.0,0.3113]
[1641393032180,0.30985049,46433.0,46417.0,0.0012196]
[1641393032378,0.30985049,46433.0,46415.0,0.3113]
[1641393032379,0.00147651,46433.0,46415.0,0.3613]
[1641393032682,0.014,46432.0,46415.0,0.3613]
[1641393032878,0.121713,46432.0,46422.0,0.107701]
[1641393033134,0.69239994,46431.0,46422.0,0.107701]
[1641393033335,0.00127798,46429.0,46411.0,0.00127653]
[1641393033533,0.0435,46428.0,46411.0,0.00127653]
[1641393033731,0.33757594,46427.0,46411.0,0.00127653]
[1641393033931,0.05,46426.0,46411.0,0.00127653]
[1641393034132,0.053865,46422.0,46416.0,0.35095685]
[1641393034331,0.053866,46420.0,46416.0,0.35095685]
[1641393034532,0.05232872,46420.0,46416.0,0.35095685]
[1641393034933,0.37115574,46425.0,46416.0,0.40481685]
[1641393035135,0.36577923,46425.0,46421.0,0.34121611]
[1641393035341,0.013,46426.0,46416.0,0.35095685]
[1641393035835,0.32817701,46430.0,46416.0,0.35095685]
[1641393036436,0.34617701,46430.0,46416.0,0.61824089]
[1641393036779,0.053858,46424.0,46420.0,0.107702]
[1641393038379,0.05486602,46424.0,46420.0,0.107702]
[1641393038580,0.06086602,46424.0,46420.0,0.120702]
[1641393039081,0.06086602,46424.0,46420.0,0.013]
[1641393039483,0.30419588,46423.0,46420.0,0.013]
[1641393039682,0.00700802,46424.0,46417.0,0.107708]
[1641393039885,0.00100802,46424.0,46417.0,0.107708]
[1641393040633,0.00900802,46424.0,46417.0,0.107708]
[1641393041432,0.00900802,46424.0,46420.0,0.0056435]
[1641393041834,0.00100802,46424.0,46420.0,0.0056435]
[1641393042533,0.00900802,46424.0,46420.0,0.0594995]
[1641393043534,0.00900802,46424.0,46422.0,0.29562959]
[1641393044281,0.163854,46429.0,46422.0,0.29562959]
[1641393044478,0.009,46424.0,46423.0,0.053853]
[1641393045078,0.009,46424.0,46422.0,0.41433359]
[1641393045683,0.063854,46429.0,46422.0,0.40333359]
[1641393046283,0.00100631,46428.0,46422.0,0.40333359]
[1641393048124,0.00100631,46428.0,46423.0,0.00564598]
[1641393048328,0.00100631,46428.0,46424.0,0.053846]
[1641393048525,0.00300631,46428.0,46424.0,0.053846]
[1641393049827,0.00100631,46428.0,46424.0,0.053846]
[1641393050529,0.00100631,46428.0,46424.0,0.070846]
[1641393050530,0.01100631,46428.0,46424.0,0.070846]
[1641393051880,0.01100631,46428.0,46424.0,0.053846]
[1641393052479,0.01800631,46428.0,46424.0,0.085846]
[1641393053880,0.01100631,46428.0,46424.0,0.053846]
[1641393054080,0.01,46428.0,46425.0,0.00564681]
[1641393054280,0.01100616,46428.0,46425.0,0.00564681]
[1641393054481,0.01300616,46428.0,46425.0,0.05664681]
[1641393055282,0.01300616,46428.0,46425.0,0.15868681]
[1641393055529,0.01300616,46428.0,46427.0,0.00125881]
[1641393055930,0.01100616,46428.0,46427.0,0.05125881]
[1641393056525,0.01100616,46428.0,46427.0,1.10525881]
[1641393056727,0.01006068,46428.0,46427.0,0.06525881]
[1641393057130,0.00506068,46428.0,46427.0,0.88371084]
[1641393057326,0.00506068,46428.0,46427.0,0.11371084]
[1641393057526,0.00506068,46428.0,46427.0,0.46468625]
[1641393057728,0.00506068,46428.0,46427.0,0.45068625]
[1641393058128,0.00506068,46428.0,46427.0,1.23068625]
[1641393058429,0.00506068,46428.0,46427.0,0.45068625]
[1641393058626,0.00506068,46428.0,46427.0,0.48368625]
[1641393059026,0.00405452,46428.0,46427.0,0.48368625]
[1641393059677,0.00405452,46428.0,46427.0,0.43368625]
[1641393059877,0.00405452,46428.0,46427.0,0.40068625]
[1641393060077,0.00405452,46428.0,46427.0,1.0963339]
[1641393060279,0.00405452,46428.0,46427.0,0.3563339]
[1641393060479,0.00405452,46428.0,46427.0,0.00564765]
[1641393060679,0.00405452,46428.0,46427.0,0.04564765]
[1641393061579,0.00405452,46428.0,46427.0,0.36165677]
[1641393061778,0.00405452,46428.0,46427.0,0.32165677]
[1641393062180,0.00405452,46428.0,46427.0,1.77322359]
[1641393062382,0.00405452,46428.0,46427.0,1.8245168]
[1641393062578,0.00405452,46428.0,46427.0,1.53912086]
[1641393063827,0.00405452,46428.0,46427.0,1.50512086]
[1641393064023,0.00405452,46428.0,46427.0,2.2127926]
[1641393064424,0.016,46429.0,46428.0,1.43]
[1641393064624,0.016,46429.0,46428.0,2.1312669]
[1641393064825,0.0010062,46430.0,46429.0,1.43]
[1641393065025,0.0061062,46434.0,46431.0,0.107652]
[1641393065226,0.0061062,46434.0,46433.0,1.15094776]
[1641393065525,0.0061062,46434.0,46433.0,0.41594776]
[1641393065929,0.0061062,46434.0,46433.0,0.81594776]
[1641393066227,0.0061062,46434.0,46433.0,0.41594776]
[1641393066626,0.0061062,46434.0,46433.0,0.42994776]
[1641393067283,0.0061062,46434.0,46433.0,1.1376195]
[1641393067682,0.0061062,46434.0,46433.0,0.42994776]
[1641393067882,0.0061062,46434.0,46433.0,1.2512236]
[1641393068283,0.0061062,46434.0,46433.0,1.95889534]
[1641393068681,0.0061062,46434.0,46433.0,1.97289534]
[1641393069884,0.0061062,46434.0,46433.0,1.95889534]
[1641393070523,0.0061062,46434.0,46433.0,2.02289534]
[1641393070724,0.0061062,46434.0,46433.0,2.04149534]
[1641393071426,0.0061062,46434.0,46433.0,2.09149534]
[1641393071631,0.0061062,46434.0,46433.0,1.99149534]
[1641393071826,0.0061062,46434.0,46433.0,1.1236195]
[1641393072027,0.0061062,46434.0,46433.0,1.44349258]
[1641393072228,0.0061062,46434.0,46433.0,1.49349258]
[1641393072627,0.0061062,46434.0,46433.0,1.50849258]
[1641393072826,0.0061062,46434.0,46433.0,1.45849258]
[1641393074030,0.0061062,46434.0,46433.0,1.44349258]
[1641393074678,0.0061062,46434.0,46433.0,1.45749258]
[1641393075779,0.0061062,46434.0,46433.0,1.8776195]
[1641393075977,0.0061062,46434.0,46433.0,1.8636195]
[1641393076179,0.0061062,46434.0,46433.0,1.9136195]
[1641393076580,0.0061062,46434.0,46433.0,1.9276195]
[1641393076782,0.0161062,46434.0,46433.0,1.6276195]
[1641393076980,0.0161062,46434.0,46433.0,1.6776195]
[1641393077480,0.0161062,46434.0,46433.0,1.2376195]
[1641393077879,0.0161062,46434.0,46433.0,1.1736195]
[1641393078535,0.0161062,46434.0,46433.0,1.1866195]
[1641393078732,0.0161062,46434.0,46433.0,1.4893296]
[1641393079336,0.0161062,46434.0,46433.0,1.1366195]
[1641393079832,0.0161062,46434.0,46433.0,1.1236195]
[1641393080534,0.0161062,46434.0,46433.0,1.1446195]
[1641393081534,0.0161062,46434.0,46433.0,1.31208695]
[1641393081782,0.0161062,46434.0,46433.0,1.1446195]
[1641393081989,0.0161062,46434.0,46433.0,1.1736195]
[1641393082582,0.0161062,46434.0,46433.0,1.2256195]
[1641393082882,0.0161062,46434.0,46433.0,2.01736097]
[1641393083085,0.0161062,46434.0,46433.0,2.11660097]
[1641393083385,0.0001,46435.0,46434.0,1.43]
[1641393083685,0.0001,46435.0,46434.0,2.39179917]
[1641393083884,0.0002,46440.0,46435.0,1.2]
[1641393084086,0.0002,46440.0,46439.0,0.00128072]
[1641393084284,0.0002,46440.0,46439.0,2.04079072]
[1641393084488,0.0002,46447.0,46440.0,1.24]
[1641393084683,0.0002,46447.0,46440.0,1.76276364]
[1641393085282,0.0002,46447.0,46440.0,1.81276364]
[1641393085534,0.0002,46447.0,46442.0,1.31282082]
[1641393085738,0.0002,46447.0,46442.0,1.76536099]
[1641393085934,0.0002,46447.0,46442.0,1.86536099]
[1641393086335,0.0002,46447.0,46442.0,0.80498174]
[1641393086336,0.0001,46445.0,46442.0,0.80498174]
[1641393086533,0.0001,46445.0,46442.0,1.20276937]
[1641393087534,0.0001,46445.0,46442.0,1.25276937]
[1641393087735,0.0001,46445.0,46442.0,2.86881937]
[1641393087935,0.0101,46443.0,46442.0,2.52103174]
[1641393088235,0.0101,46443.0,46442.0,4.26000174]
[1641393088637,0.0101,46443.0,46442.0,4.34800174]
[1641393088836,0.0101,46443.0,46442.0,4.39800174]
[1641393089139,0.0101,46443.0,46442.0,3.06800174]
[1641393089576,0.0101,46443.0,46442.0,3.06922433]
[1641393089977,0.0001,46445.0,46443.0,1.43]
[1641393090179,0.0001,46445.0,46444.0,1.413807]
[1641393090380,0.0001,46445.0,46444.0,2.10451747]
[1641393090577,0.0002,46447.0,46444.0,1.98751747]
[1641393090783,0.0003,46450.0,46444.0,0.74451747]
[1641393090978,0.0003,46450.0,46444.0,1.50473474]
[1641393091179,0.05791505,46449.0,46445.0,0.053815]
[1641393091380,0.0041,46449.0,46446.0,0.64591]
[1641393091583,0.0041,46449.0,46447.0,0.8535]
[1641393091779,0.0041,46449.0,46447.0,1.4994]
[1641393092077,0.0041,46449.0,46447.0,0.6894]
[1641393092279,0.0041,46449.0,46447.0,1.39707174]
[1641393092677,0.0041,46449.0,46447.0,1.43207174]
[1641393093333,0.0041,46449.0,46447.0,1.85864036]
[1641393093532,0.0102,46448.0,46447.0,1.85864036]
[1641393093934,0.0102,46448.0,46447.0,1.39707174]
[1641393094733,0.0102,46448.0,46447.0,1.42507174]
[1641393095939,0.0102,46448.0,46447.0,1.39707174]
[1641393096137,0.0102,46448.0,46447.0,1.35357174]
[1641393096983,0.0102,46448.0,46447.0,1.35923387]
[1641393097590,1.82127594,46448.0,46447.0,0.65156213]
[1641393097789,1.4837,46448.0,46447.0,0.65156213]
[1641393097987,1.938524,46448.0,46447.0,0.65156213]
[1641393098185,2.038524,46448.0,46447.0,0.65156213]
[1641393098388,0.38915226,46445.0,46442.0,0.01270297]
[1641393098588,0.73589994,46444.0,46442.0,0.01270297]
[1641393098786,0.67,46443.0,46442.0,0.01270297]
[1641393098985,0.448324,46443.0,46442.0,0.01270297]
[1641393099191,0.548324,46443.0,46442.0,0.01270297]
[1641393099787,0.91148595,46443.0,46442.0,0.01270297]
[1641393099989,0.18093815,46439.0,46431.0,0.96515091]
[1641393100193,0.05384,46436.0,46431.0,1.01898991]
[1641393100631,0.05384,46436.0,46431.0,0.96515091]
[1641393100632,0.06084,46436.0,46431.0,0.96515091]
[1641393101032,0.05383959,46435.0,46434.0,0.72157706]
[1641393101232,0.05213834,46435.0,46434.0,0.72157706]
[1641393101429,0.04713834,46435.0,46434.0,0.72157706]
[1641393102631,0.05413834,46435.0,46434.0,0.72157706]
[1641393103631,0.05267374,46435.0,46434.0,0.72157706]
[1641393103832,0.05267374,46435.0,46433.0,0.00483486]
[1641393104032,0.04567374,46435.0,46433.0,0.00483486]
[1641393104279,0.09567374,46435.0,46433.0,0.00483486]
[1641393104781,0.10167374,46435.0,46433.0,0.00483486]
[1641393105880,0.31059293,46434.0,46433.0,0.00483486]
[1641393106682,0.31359293,46434.0,46433.0,0.00483486]
[1641393106883,0.35709293,46434.0,46433.0,0.00483486]
[1641393107484,0.35651926,46434.0,46433.0,0.00483486]
[1641393107892,0.90834326,46434.0,46433.0,0.00483486]
[1641393108369,1.05834326,46434.0,46431.0,0.41723387]
[1641393108567,0.46255141,46433.0,46427.0,0.41723387]
[1641393108765,0.2476926,46429.0,46427.0,0.41723387]
[1641393108966,0.72966713,46428.0,46420.0,0.96515091]
[1641393109170,0.72966713,46428.0,46418.0,0.0127034]
[1641393109365,0.82966713,46428.0,46418.0,0.0127034]
[1641393109665,0.05385915,46423.0,46418.0,0.0127034]
[1641393109865,0.3484417,46422.0,46418.0,0.0127034]
[1641393110065,0.34967441,46422.0,46421.0,0.26551294]
[1641393110266,0.39967441,46422.0,46421.0,0.26551294]
[1641393110468,0.75449841,46422.0,46421.0,0.26551294]
[1641393110665,0.76149841,46422.0,46411.0,1.07287191]
[1641393110865,0.053863,46416.0,46411.0,1.07287191]
[1641393111066,0.053863,46416.0,46412.0,1.23085479]
[1641393111269,0.0012843,46415.0,46412.0,1.23085479]
[1641393112088,0.20682284,46414.0,46412.0,0.26570388]
[1641393112488,0.30682284,46414.0,46412.0,0.26570388]
[1641393112688,0.31482284,46414.0,46412.0,0.26570388]
[1641393112897,0.31482284,46414.0,46403.0,1.1003589]
[1641393112898,0.47645003,46414.0,46404.0,1.23085479]
[1641393113092,0.053874,46413.0,46404.0,1.23085479]
[1641393113388,0.053874,46413.0,46405.0,0.26570388]
[1641393113389,0.32475102,46412.0,46405.0,0.26570388]
[1641393113588,0.37475102,46412.0,46405.0,0.26570388]
[1641393113788,0.05387335,46411.0,46405.0,0.26570388]
[1641393114189,0.053873,46410.0,46405.0,0.26570388]
[1641393114390,0.33019119,46409.0,46405.0,0.26570388]
[1641393114790,0.38019119,46409.0,46406.0,0.26570388]
[1641393114992,0.04477874,46408.0,46406.0,0.26570388]
[1641393115191,1.06287909,46407.0,46406.0,0.26570388]
[1641393115388,1.4624042,46407.0,46406.0,0.26570388]
[1641393115643,1.5124042,46407.0,46406.0,0.26570388]
[1641393116040,1.5124042,46407.0,46401.0,0.96515091]
[1641393116041,0.05388642,46404.0,46401.0,0.96515091]
[1641393116238,0.36228569,46403.0,46398.0,0.96515091]
[1641393116840,0.04476129,46403.0,46402.0,0.06091755]
[1641393117038,0.0435,46403.0,46402.0,0.06091755]
[1641393117438,0.0435,46403.0,46402.0,0.00483817]
[1641393118040,0.0435,46403.0,46402.0,0.06575572]
[1641393118739,0.0485,46403.0,46402.0,0.00483817]
[1641393120385,0.0435,46403.0,46402.0,0.00483817]
[1641393120790,0.0455,46403.0,46402.0,0.00483817]
[1641393121285,0.37223089,46403.0,46402.0,0.00483817]
[1641393121488,0.47223089,46403.0,46402.0,0.00483817]
[1641393121794,0.47223089,46403.0,46391.0,0.004]
[1641393121795,0.18116107,46398.0,46381.0,0.004]
[1641393121991,0.6436,46390.0,46381.0,0.004]
[1641393122192,1.254824,46386.0,46378.0,0.0852056]
[1641393122388,1.23325179,46379.0,46378.0,0.0852056]
[1641393122590,1.23325179,46379.0,46371.0,0.004]
[1641393122591,1.43,46378.0,46371.0,0.004]
[1641393122792,1.7936,46372.0,46371.0,0.0001]
[1641393123060,1.7936,46372.0,46358.0,0.52893176]
[1641393123061,0.554824,46368.0,46358.0,0.52893176]
[1641393123255,0.1,46360.0,46358.0,0.32913176]
[1641393123555,0.1,46360.0,46348.0,0.31688222]
[1641393123556,0.4837196,46358.0,46348.0,0.31688222]
[1641393123750,0.941924,46357.0,46341.0,0.00657652]
[1641393123950,1.09320821,46357.0,46341.0,0.00657652]
[1641393124350,1.09320821,46357.0,46341.0,0.004]
[1641393124550,2.00875657,46357.0,46356.0,0.0001]
[1641393124753,1.54775657,46357.0,46356.0,0.0001]
[1641393124953,1.54775657,46357.0,46341.0,0.3319798]
[1641393124954,1.20220821,46357.0,46341.0,0.004]
[1641393125151,0.00125685,46352.0,46341.0,0.004]
[1641393125354,0.39958085,46352.0,46341.0,0.004]
[1641393125751,0.49958085,46352.0,46341.0,0.004]
[1641393126256,0.59958085,46352.0,46346.0,0.01270409]
[1641393126452,0.65352532,46352.0,46346.0,0.01270409]
[1641393126885,0.98666491,46352.0,46346.0,0.01270409]
[1641393127482,1.16484491,46352.0,46346.0,0.01270409]
[1641393127684,0.354824,46348.0,46341.0,0.00654431]
[1641393127885,0.91,46350.0,46341.0,0.00654431]
[1641393127886,0.89,46342.0,46341.0,0.00654431]
[1641393128084,1.57149527,46342.0,46341.0,0.00654431]
[1641393128282,2.02076719,46342.0,46341.0,0.00654431]
[1641393128482,2.02076719,46342.0,46331.0,0.004]
[1641393128483,0.89,46341.0,46331.0,0.004]
[1641393128687,0.398324,46340.0,46331.0,0.004]
[1641393128890,0.00129047,46332.0,46331.0,0.004]
[1641393129086,1.07200447,46332.0,46331.0,0.004]
[1641393129286,0.47200447,46332.0,46331.0,0.004]
[1641393129489,1.31174059,46332.0,46331.0,0.004]
[1641393129690,1.03198763,46332.0,46331.0,0.004]
[1641393129887,1.03198763,46332.0,46304.0,0.998045]
[1641393130089,0.053974,46325.0,46304.0,0.898045]
[1641393130288,0.0435,46324.0,46304.0,0.107945]
[1641393130536,0.0935,46324.0,46304.0,0.107945]
[1641393130935,0.23202878,46318.0,46304.0,0.107945]
[1641393131140,0.0435,46317.0,46304.0,0.107945]
[1641393131338,0.0435,46317.0,46301.0,0.111955]
[1641393131550,0.68854996,46316.0,46301.0,0.111955]
[1641393131841,0.00122596,46312.0,46302.0,0.3234484]
[1641393132039,0.04472596,46312.0,46302.0,0.3234484]
[1641393132238,0.38537191,46312.0,46301.0,0.004]
[1641393132439,0.74019591,46312.0,46301.0,0.004]
[1641393132740,0.80018891,46312.0,46301.0,0.004]
[1641393132942,0.05072596,46312.0,46301.0,0.004]
[1641393133142,0.05072596,46312.0,46311.0,0.644]
[1641393133143,0.0495,46312.0,46311.0,0.644]
[1641393133339,0.0495,46312.0,46311.0,0.004]
[1641393133938,0.0435,46312.0,46311.0,0.004]
[1641393134785,0.0515,46312.0,46311.0,0.004]
[1641393135384,0.0515,46312.0,46311.0,0.0088477]
[1641393135988,0.0435,46312.0,46311.0,0.0088477]
[1641393136794,0.0515,46312.0,46311.0,0.0088477]
[1641393138036,0.008,46312.0,46311.0,1.4388477]
[1641393138239,0.008,46312.0,46311.0,1.5388477]
[1641393138638,0.008,46312.0,46311.0,1.4598477]
[1641393138836,0.17962203,46324.0,46311.0,1.4598477]
[1641393139037,0.0435,46333.0,46318.0,0.30449661]
[1641393139239,0.00127916,46330.0,46318.0,0.30449661]
[1641393139441,0.73197471,46320.0,46318.0,0.30449661]
[1641393140239,0.73197471,46323.0,46318.0,0.30449661]
[1641393140638,0.73197471,46323.0,46318.0,0.31749661]
[1641393140838,0.73197471,46324.0,46318.0,0.31749661]
[1641393141240,1.06714829,46326.0,46318.0,0.32234336]
[1641393141241,0.73197471,46323.0,46318.0,0.32234336]
[1641393141637,0.73197471,46323.0,46318.0,0.01784675]
[1641393141893,0.73197471,46323.0,46318.0,0.00484675]
[1641393142096,0.73197471,46324.0,46318.0,0.00484675]
[1641393142293,0.73197471,46324.0,46318.0,0.00736089]
[1641393142694,0.73197471,46324.0,46318.0,0.01936089]
[1641393143594,0.73197471,46323.0,46318.0,0.01936089]
[1641393143995,0.73197471,46323.0,46318.0,0.00736089]
[1641393144196,0.05279204,46322.0,46318.0,0.32199301]
[1641393144397,0.01388964,46330.0,46321.0,0.1]
[1641393144601,0.01388964,46330.0,46325.0,0.1]
[1641393144800,0.01261048,46330.0,46325.0,0.1]
[1641393144996,0.01261048,46330.0,46326.0,0.3607001]
[1641393145198,0.01261048,46330.0,46329.0,1.39850932]
[1641393145397,0.01261048,46330.0,46329.0,0.0435]
[1641393146039,0.01261048,46330.0,46329.0,1.0035]
[1641393146437,0.053953,46334.0,46329.0,1.57798253]
[1641393146638,0.053953,46334.0,46329.0,1.59298253]
[1641393147139,0.053953,46334.0,46329.0,0.63298253]
[1641393147742,0.053953,46334.0,46329.0,1.02461905]
[1641393147939,0.01261021,46335.0,46329.0,1.06356605]
[1641393148538,0.01261021,46335.0,46330.0,0.107896]
[1641393149987,0.053952,46334.0,46329.0,0.00484562]
[1641393150189,0.00121906,46332.0,46329.0,0.00484562]
[1641393150390,0.354824,46331.0,46330.0,0.00251389]
[1641393151187,0.354824,46331.0,46329.0,0.00484562]
[1641393152189,0.00121906,46332.0,46329.0,0.00484562]
[1641393152589,0.053952,46334.0,46329.0,0.00484562]
[1641393152788,0.008,46332.0,46329.0,0.01884562]
[1641393153635,0.008,46332.0,46330.0,0.27136712]
[1641393153835,0.008,46332.0,46331.0,1.72508832]
[1641393154138,0.01,46335.0,46331.0,1.76858832]
[1641393154532,0.01,46335.0,46331.0,1.4535]
[1641393154732,0.01,46335.0,46331.0,1.4705]
[1641393155334,0.01,46335.0,46334.0,1.24615969]
[1641393156333,0.01,46335.0,46334.0,1.59531388]
[1641393156791,0.01,46335.0,46334.0,0.37115419]
[1641393156990,0.01,46335.0,46334.0,0.022]
[1641393157989,0.01,46335.0,46331.0,0.00484556]
[1641393158189,0.01,46335.0,46332.0,0.053955]
[1641393158790,0.053956,46334.0,46332.0,0.005]
[1641393158993,0.35607541,46333.0,46332.0,0.005]
[1641393159389,0.35607541,46333.0,46324.0,0.01261009]
[1641393159591,0.00125141,46333.0,46324.0,0.01261009]
[1641393159890,0.053968,46330.0,46324.0,0.01261009]
[1641393160292,0.05,46331.0,46321.0,0.107924]
[1641393160741,0.009,46330.0,46324.0,0.008]
[1641393160942,0.107932,46328.0,46324.0,0.008]
[1641393161140,0.107932,46328.0,46325.0,0.053967]
[1641393161544,0.053965,46329.0,46325.0,0.053967]
[1641393162749,0.058965,46329.0,46325.0,0.017]
[1641393162944,0.31699316,46328.0,46325.0,0.017]
[1641393163145,0.058965,46329.0,46325.0,0.017]
[1641393163543,0.30417664,46328.0,46325.0,0.017]
[1641393163944,0.30417664,46328.0,46322.0,0.107926]
[1641393164282,0.053965,46329.0,46322.0,0.107926]
[1641393164482,0.30709488,46328.0,46322.0,0.107926]
[1641393164683,0.21918723,46324.0,46322.0,0.117926]
[1641393164886,0.21918723,46324.0,46322.0,0.01]
[1641393164887,0.33233853,46323.0,46322.0,0.01]
[1641393165084,0.45605035,46323.0,46322.0,0.01]
[1641393165688,0.88066253,46323.0,46314.0,0.107946]
[1641393165887,0.88066253,46323.0,46311.0,0.004]
[1641393165888,1.144824,46322.0,46311.0,0.004]
[1641393166093,0.00121033,46312.0,46311.0,0.004]
[1641393166286,0.35603433,46312.0,46311.0,0.004]
[1641393166685,0.47003433,46312.0,46311.0,0.004]
[1641393166891,0.47003433,46312.0,46301.0,0.004]
[1641393166892,0.10800628,46311.0,46301.0,0.004]
[1641393167093,0.00121231,46302.0,46301.0,0.004]
[1641393167290,0.50583631,46302.0,46290.0,0.00733482]
[1641393167587,0.00121264,46297.0,46290.0,0.00733482]
[1641393167790,0.35603664,46297.0,46290.0,0.00733482]
[1641393168041,0.35579415,46297.0,46290.0,0.00733482]
[1641393168238,0.35579415,46297.0,46294.0,0.054007]
[1641393168438,1.08776886,46297.0,46294.0,0.054007]
[1641393168640,1.08776886,46297.0,46295.0,0.19247658]
[1641393168838,1.08776886,46297.0,46296.0,0.81]
[1641393168839,0.73359312,46297.0,46296.0,0.81]
[1641393169237,0.012,46297.0,46296.0,1.0816763]
[1641393169639,0.012,46297.0,46296.0,0.01]
[1641393170038,0.00122676,46302.0,46296.0,0.01]
[1641393170242,0.00122676,46302.0,46297.0,0.054001]
[1641393170840,0.07022676,46302.0,46298.0,0.13]
[1641393171043,0.107989,46300.0,46298.0,0.13]
[1641393171896,0.107989,46300.0,46296.0,0.0100694]
[1641393171897,0.00129363,46299.0,46296.0,0.0100694]
[1641393172095,0.354849,46298.0,46296.0,0.0100694]
[1641393172296,0.00120666,46297.0,46296.0,0.0100694]
[1641393172595,0.00122545,46293.0,46290.0,0.00733482]
[1641393172798,0.77,46292.0,46290.0,0.00733482]
[1641393173002,0.77,46292.0,46283.0,0.01261098]
[1641393173003,0.354849,46290.0,46283.0,0.01261098]
[1641393173196,0.054029,46287.0,46283.0,0.00761098]
[1641393173397,0.00125431,46284.0,46283.0,0.00761098]
[1641393173594,0.00125431,46284.0,46281.0,0.004]
[1641393173595,0.00121903,46282.0,46281.0,0.004]
[1641393173795,0.39956803,46282.0,46281.0,0.004]
[1641393173996,0.39956803,46282.0,46275.0,0.00197108]
[1641393174196,0.00121589,46278.0,46275.0,0.00197108]
[1641393174395,0.00121589,46278.0,46277.0,0.6502148]
[1641393174797,0.011,46278.0,46277.0,0.6502148]
[1641393175544,0.011,46278.0,46277.0,0.7042408]
[1641393176041,0.05401,46284.0,46277.0,1.28132698]
[1641393176241,0.00128472,46296.0,46284.0,0.108015]
[1641393176440,0.00128472,46296.0,46278.0,0.0012615]
[1641393176441,0.108008,46294.0,46286.0,0.30116784]
[1641393176738,0.108008,46294.0,46283.0,0.10800823]
[1641393176941,0.054011,46293.0,46283.0,0.10800823]
[1641393177139,0.054005,46291.0,46283.0,0.10800823]
[1641393177338,0.054005,46291.0,46279.0,0.162022]
[1641393177339,0.054005,46291.0,46286.0,0.108019]
[1641393178240,0.108022,46290.0,46287.0,0.054009]
[1641393178840,0.119022,46290.0,46287.0,0.054009]
[1641393180089,0.42263409,46290.0,46286.0,0.108019]
[1641393180286,0.42263409,46290.0,46280.0,0.103035]
[1641393180287,0.39592689,46289.0,46280.0,0.103035]
[1641393180491,0.054022,46284.0,46280.0,0.103035]
[1641393180691,0.32431281,46283.0,46280.0,0.103035]
[1641393180888,0.054022,46284.0,46280.0,0.103035]
[1641393181290,0.054022,46284.0,46281.0,7.582e-05]
[1641393181492,0.054022,46284.0,46281.0,0.05408851]
[1641393181686,0.054022,46284.0,46281.0,7.582e-05]
[1641393182286,0.054022,46284.0,46281.0,0.05408682]
[1641393182488,0.054022,46284.0,46281.0,0.04908682]
[1641393182686,0.054022,46284.0,46281.0,0.04759622]
[1641393182887,0.064022,46284.0,46281.0,0.05459622]
[1641393183347,0.064022,46284.0,46281.0,0.01248354]
[1641393183742,0.074022,46284.0,46281.0,0.01248354]
[1641393184142,0.064022,46284.0,46281.0,0.00532122]
[1641393184342,0.04242201,46284.0,46281.0,0.00532122]
[1641393184741,0.06342201,46284.0,46281.0,0.00932122]
[1641393185742,0.06342201,46284.0,46281.0,0.05932122]
[1641393186144,0.04242201,46284.0,46281.0,0.05532122]
[1641393186782,0.06542201,46284.0,46281.0,0.05832122]
[1641393187082,0.06542201,46284.0,46281.0,0.00832122]
[1641393187684,0.06542201,46284.0,46277.0,0.64890926]
[1641393188082,0.04242201,46284.0,46277.0,0.64890926]
[1641393188783,0.09442201,46284.0,46277.0,0.64890926]
[1641393189385,0.09442201,46284.0,46279.0,0.108035]
[1641393190085,0.04242201,46284.0,46279.0,0.108035]
[1641393190740,0.05542201,46284.0,46279.0,0.108035]
[1641393191538,0.29962068,46283.0,46279.0,0.108035]
[1641393191739,0.35364168,46283.0,46279.0,0.108035]
[1641393191938,0.35364168,46283.0,46277.0,0.70293526]
[1641393191939,0.40766368,46283.0,46277.0,0.70293526]
[1641393192140,0.35364168,46283.0,46280.0,6.935e-05]
[1641393192343,0.054021,46283.0,46280.0,6.935e-05]
[1641393192741,0.065021,46283.0,46280.0,6.935e-05]
[1641393193039,0.054026,46282.0,46280.0,6.935e-05]
[1641393193642,0.054026,46282.0,46281.0,0.00381986]
[1641393194689,0.064013,46284.0,46281.0,0.05783186]
[1641393194888,0.013,46282.0,46281.0,0.00781986]